[Event "Titled Tuesday Blitz July 11 Late 2023"]
[White "Osmonbekov, Talaibek"]
[Black "Bettalli, Francesco"]
[WhiteFideId "2017253"]
[BlackFideId "2816453"]
[WhiteElo "2211"]
[BlackElo "2485"]
[Result "0-1"]
[Round "2"]
[TimeControl "180+2"]
[Date "2023.07.11"]
[WhiteClock "0:00:00"]
[BlackClock "0:00:21"]
[Board "172"]

1. d4 {[%clk 0:03:00]}  g6 {[%clk 0:02:46]} 2. e4 {[%clk 0:02:56]}  Bg7 {[%clk 0:02:47]} 3. Nc3 {[%clk 0:02:56]}  c6 {[%clk 0:02:47]} 4. h4 {[%clk 0:02:52]}  h5 {[%clk 0:02:46]} 5. Bc4 {[%clk 0:02:44]}  e6 {[%clk 0:02:40]} 6. Bg5 {[%clk 0:02:32]}  Qa5 {[%clk 0:02:38]} 7. e5 {[%clk 0:02:08]}  b5 {[%clk 0:02:34]} 8. Bb3 {[%clk 0:02:05]}  Ne7 {[%clk 0:02:31]} 9. Bxe7 {[%clk 0:01:44]}  Kxe7 {[%clk 0:02:32]} 10. Nf3 {[%clk 0:01:39]}  Na6 {[%clk 0:02:28]} 11. O-O {[%clk 0:01:38]}  Nc7 {[%clk 0:02:28]} 12. Ne4 {[%clk 0:01:35]}  Nd5 {[%clk 0:02:27]} 13. Nd6 {[%clk 0:01:31]}  f6 {[%clk 0:02:19]} 14. Bxd5 {[%clk 0:01:21]}  cxd5 {[%clk 0:02:18]} 15. Qd3 {[%clk 0:01:20]}  fxe5 {[%clk 0:02:08]} 16. dxe5 {[%clk 0:01:19]}  Rh6 {[%clk 0:02:00]} 17. Qe3 {[%clk 0:00:59]}  Ba6 {[%clk 0:01:30]} 18. Qg5+ {[%clk 0:00:55]}  Kf8 {[%clk 0:01:30]} 19. Qf4+ {[%clk 0:00:52]}  Kg8 {[%clk 0:01:30]} 20. Qf7+ {[%clk 0:00:51]}  Kh8 {[%clk 0:01:30]} 21. Qxd7 {[%clk 0:00:50]}  Rh7 {[%clk 0:01:24]} 22. Nf7+ {[%clk 0:00:39]}  Kg8 {[%clk 0:01:22]} 23. N3g5 {[%clk 0:00:31]}  Bc8 {[%clk 0:01:15]} 24. Qe8+ {[%clk 0:00:29]}  Bf8 {[%clk 0:01:15]} 25. Nxh7 {[%clk 0:00:28]}  Bb7 {[%clk 0:01:15]} 26. Nf6+ {[%clk 0:00:20]}  Kg7 {[%clk 0:01:15]} 27. Qd7 {[%clk 0:00:20]}  Bc8 {[%clk 0:01:14]} 28. Ne8+ {[%clk 0:00:16]}  Kg8 {[%clk 0:01:14]} 29. Nf6+ {[%clk 0:00:16]}  Kg7 {[%clk 0:01:14]} 30. Qc6 {[%clk 0:00:16]}  Kxf7 {[%clk 0:01:09]} 31. Qxa8 {[%clk 0:00:15]}  Qc7 {[%clk 0:01:10]} 32. b3 {[%clk 0:00:14]}  Bc5 {[%clk 0:01:09]} 33. c4 {[%clk 0:00:14]}  bxc4 {[%clk 0:01:00]} 34. bxc4 {[%clk 0:00:15]}  dxc4 {[%clk 0:01:00]} 35. Rac1 {[%clk 0:00:15]}  Bb6 {[%clk 0:00:45]} 36. Qf3 {[%clk 0:00:13]}  Ke7 {[%clk 0:00:34]} 37. Qe4 {[%clk 0:00:12]}  Bb7 {[%clk 0:00:31]} 38. Qxg6 {[%clk 0:00:12]}  Qxe5 {[%clk 0:00:31]} 39. Qg7+ {[%clk 0:00:10]}  Kd6 {[%clk 0:00:29]} 40. Rfd1+ {[%clk 0:00:09]}  Kc6 {[%clk 0:00:23]} 41. Qd7+ {[%clk 0:00:02]}  Kc5 {[%clk 0:00:23]} 42. Qxb7 {[%clk 0:00:02]}  Qxf6 {[%clk 0:00:21]} 43. Qe4 {[%clk 0:00:02]}  c3 {[%clk 0:00:20]} 44. Rd3 {[%clk 0:00:01]}  Kb5 {[%clk 0:00:20]} 45. Rdxc3 {[%clk 0:00:00]}  Qxf2+ {[%clk 0:00:21]} 0-1


[Site "https://www.chess.com"]

[Event "Titled Tuesday Blitz July 11 Late 2023"]
[White "UgarteCesar"]
[Black "Ladan, Nicholas"]
[BlackFideId "30918855"]
[WhiteElo "2206"]
[BlackElo "2484"]
[Result "0-1"]
[Round "2"]
[TimeControl "180+2"]
[Date "2023.07.11"]
[WhiteClock "0:00:13"]
[BlackClock "0:00:12"]
[Board "173"]

1. d4 {[%clk 0:03:00]}  d5 {[%clk 0:03:00]} 2. c4 {[%clk 0:02:59]}  e6 {[%clk 0:02:59]} 3. Nf3 {[%clk 0:02:59]}  Nf6 {[%clk 0:02:59]} 4. Bg5 {[%clk 0:02:59]}  Nbd7 {[%clk 0:02:58]} 5. Nc3 {[%clk 0:02:58]}  Bb4 {[%clk 0:02:57]} 6. a3 {[%clk 0:02:56]}  Bxc3+ {[%clk 0:02:56]} 7. bxc3 {[%clk 0:02:56]}  h6 {[%clk 0:02:56]} 8. Bh4 {[%clk 0:02:54]}  g5 {[%clk 0:02:56]} 9. Bg3 {[%clk 0:02:54]}  Ne4 {[%clk 0:02:56]} 10. Qc2 {[%clk 0:02:52]}  h5 {[%clk 0:02:49]} 11. cxd5 {[%clk 0:02:22]}  exd5 {[%clk 0:02:47]} 12. h4 {[%clk 0:01:29]}  Nxg3 {[%clk 0:02:36]} 13. fxg3 {[%clk 0:01:30]}  g4 {[%clk 0:02:36]} 14. Nd2 {[%clk 0:01:24]}  Qf6 {[%clk 0:02:29]} 15. e4 {[%clk 0:01:23]}  Nb6 {[%clk 0:02:29]} 16. e5 {[%clk 0:01:21]}  Bf5 {[%clk 0:02:16]} 17. Bd3 {[%clk 0:01:15]}  Bxd3 {[%clk 0:02:15]} 18. Qxd3 {[%clk 0:01:15]}  Qe7 {[%clk 0:02:14]} 19. O-O {[%clk 0:01:12]}  O-O-O {[%clk 0:02:08]} 20. Qf5+ {[%clk 0:01:11]}  Rd7 {[%clk 0:02:03]} 21. a4 {[%clk 0:01:10]}  a5 {[%clk 0:02:01]} 22. Nb3 {[%clk 0:01:07]}  Nc4 {[%clk 0:01:53]} 23. Nc5 {[%clk 0:01:02]}  Ne3 {[%clk 0:01:52]} 24. Qxd7+ {[%clk 0:01:02]}  Qxd7 {[%clk 0:01:52]} 25. Nxd7 {[%clk 0:01:02]}  Nxf1 {[%clk 0:01:52]} 26. Rxf1 {[%clk 0:01:02]}  Kxd7 {[%clk 0:01:51]} 27. Rxf7+ {[%clk 0:01:03]}  Kc6 {[%clk 0:01:49]} 28. Kf2 {[%clk 0:00:58]}  b5 {[%clk 0:01:32]} 29. axb5+ {[%clk 0:00:58]}  Kb6 {[%clk 0:01:32]} 30. Ke3 {[%clk 0:00:55]}  a4 {[%clk 0:01:32]} 31. Kd3 {[%clk 0:00:54]}  a3 {[%clk 0:01:30]} 32. Kc2 {[%clk 0:00:54]}  a2 {[%clk 0:01:24]} 33. Kb2 {[%clk 0:00:53]}  Ra8 {[%clk 0:01:25]} 34. Ka1 {[%clk 0:00:53]}  Ra3 {[%clk 0:01:25]} 35. e6 {[%clk 0:00:52]}  Rxc3 {[%clk 0:01:25]} 36. Kxa2 {[%clk 0:00:50]}  Kxb5 {[%clk 0:01:07]} 37. e7 {[%clk 0:00:44]}  Re3 {[%clk 0:01:06]} 38. Rf5 {[%clk 0:00:44]}  Rxe7 {[%clk 0:01:01]} 39. Rxd5+ {[%clk 0:00:44]}  Kc4 {[%clk 0:00:59]} 40. Rxh5 {[%clk 0:00:44]}  Kxd4 {[%clk 0:00:53]} 41. Rg5 {[%clk 0:00:44]}  c5 {[%clk 0:00:33]} 42. Rxg4+ {[%clk 0:00:43]}  Kd3 {[%clk 0:00:33]} 43. h5 {[%clk 0:00:41]}  c4 {[%clk 0:00:30]} 44. h6 {[%clk 0:00:38]}  c3 {[%clk 0:00:23]} 45. Rg7 {[%clk 0:00:34]}  c2 {[%clk 0:00:19]} 46. Kb2 {[%clk 0:00:17]}  Kd2 {[%clk 0:00:12]} 47. Rxe7 {[%clk 0:00:16]}  c1=Q+ {[%clk 0:00:12]} 48. Kb3 {[%clk 0:00:17]}  Qc3+ {[%clk 0:00:11]} 49. Ka2 {[%clk 0:00:16]}  Qc4+ {[%clk 0:00:11]} 50. Kb1 {[%clk 0:00:16]}  Qb4+ {[%clk 0:00:11]} 51. Ka2 {[%clk 0:00:13]}  Qxe7 {[%clk 0:00:12]} 0-1


[Site "https://www.chess.com"]

[Event "Titled Tuesday Blitz July 11 Late 2023"]
[White "Djabri, Massinas"]
[Black "Cardenas Carbajal, Nilson"]
[WhiteFideId "7905726"]
[BlackFideId "8401128"]
[WhiteElo "2476"]
[BlackElo "2155"]
[Result "1-0"]
[Round "2"]
[TimeControl "180+2"]
[Date "2023.07.11"]
[WhiteClock "0:01:34"]
[BlackClock "0:00:00"]
[Board "176"]

1. e4 {[%clk 0:02:59]}  e5 {[%clk 0:02:56]} 2. Nf3 {[%clk 0:02:58]}  Nc6 {[%clk 0:02:57]} 3. Bc4 {[%clk 0:02:58]}  Nf6 {[%clk 0:02:55]} 4. d3 {[%clk 0:02:58]}  Bc5 {[%clk 0:02:55]} 5. O-O {[%clk 0:02:58]}  d6 {[%clk 0:02:54]} 6. c3 {[%clk 0:02:56]}  a6 {[%clk 0:02:50]} 7. Nbd2 {[%clk 0:02:54]}  O-O {[%clk 0:02:42]} 8. Bb3 {[%clk 0:02:52]}  Ba7 {[%clk 0:02:41]} 9. Bc2 {[%clk 0:02:51]}  Kh8 {[%clk 0:02:35]} 10. Nc4 {[%clk 0:02:48]}  h6 {[%clk 0:02:26]} 11. h3 {[%clk 0:02:41]}  Ne7 {[%clk 0:02:23]} 12. Kh1 {[%clk 0:02:39]}  Ng6 {[%clk 0:02:19]} 13. Nh2 {[%clk 0:02:39]}  Be6 {[%clk 0:02:16]} 14. Ne3 {[%clk 0:02:39]}  Qd7 {[%clk 0:02:13]} 15. d4 {[%clk 0:02:32]}  Bxh3 {[%clk 0:01:20]} 16. gxh3 {[%clk 0:02:32]}  Qxh3 {[%clk 0:01:18]} 17. Qf3 {[%clk 0:02:32]}  Qxf3+ {[%clk 0:00:56]} 18. Nxf3 {[%clk 0:02:31]}  exd4 {[%clk 0:00:54]} 19. cxd4 {[%clk 0:02:31]}  Rfe8 {[%clk 0:00:51]} 20. e5 {[%clk 0:02:27]}  dxe5 {[%clk 0:00:23]} 21. Bxg6 {[%clk 0:02:26]}  fxg6 {[%clk 0:00:23]} 22. dxe5 {[%clk 0:02:23]}  Nd7 {[%clk 0:00:22]} 23. Nd5 {[%clk 0:02:06]}  Rac8 {[%clk 0:00:19]} 24. Bf4 {[%clk 0:02:03]}  c6 {[%clk 0:00:19]} 25. Nc3 {[%clk 0:02:01]}  Rf8 {[%clk 0:00:16]} 26. Ne2 {[%clk 0:02:01]}  Rce8 {[%clk 0:00:15]} 27. Kg2 {[%clk 0:01:58]}  Bb8 {[%clk 0:00:13]} 28. e6 {[%clk 0:01:51]}  Bxf4 {[%clk 0:00:08]} 29. Nxf4 {[%clk 0:01:50]}  Nc5 {[%clk 0:00:08]} 30. Nxg6+ {[%clk 0:01:49]}  Kh7 {[%clk 0:00:07]} 31. Nxf8+ {[%clk 0:01:50]}  Rxf8 {[%clk 0:00:07]} 32. e7 {[%clk 0:01:50]}  Re8 {[%clk 0:00:07]} 33. Rfe1 {[%clk 0:01:49]}  Nd3 {[%clk 0:00:05]} 34. Re4 {[%clk 0:01:48]}  g5 {[%clk 0:00:02]} 35. Rd1 {[%clk 0:01:45]}  Nf4+ {[%clk 0:00:01]} 36. Kg3 {[%clk 0:01:45]}  Nd5 {[%clk 0:00:02]} 37. Re6 {[%clk 0:01:37]}  Kg7 {[%clk 0:00:00]} 38. Ne5 {[%clk 0:01:34]} 1-0


[Site "https://www.chess.com"]

[Event "Titled Tuesday Blitz July 11 Late 2023"]
[White "Sliwicki, Damian"]
[Black "Oliveira, Tiago Batista"]
[WhiteFideId "1127128"]
[BlackFideId "2108291"]
[WhiteElo "2472"]
[BlackElo "2153"]
[Result "1-0"]
[Round "2"]
[TimeControl "180+2"]
[Date "2023.07.11"]
[WhiteClock "0:03:03"]
[BlackClock "0:01:06"]
[Board "177"]

1. e4 {[%clk 0:03:00]}  e5 {[%clk 0:02:57]} 2. Nf3 {[%clk 0:02:59]}  Nc6 {[%clk 0:02:57]} 3. d4 {[%clk 0:03:00]}  exd4 {[%clk 0:02:57]} 4. Bc4 {[%clk 0:03:01]}  Bc5 {[%clk 0:02:57]} 5. O-O {[%clk 0:03:01]}  Nf6 {[%clk 0:02:57]} 6. e5 {[%clk 0:03:01]}  d5 {[%clk 0:02:57]} 7. exf6 {[%clk 0:03:02]}  dxc4 {[%clk 0:02:57]} 8. fxg7 {[%clk 0:03:03]}  Rg8 {[%clk 0:02:58]} 9. Re1+ {[%clk 0:03:04]}  Be6 {[%clk 0:02:58]} 10. Bg5 {[%clk 0:03:04]}  Qd5 {[%clk 0:02:58]} 11. Nc3 {[%clk 0:03:04]}  Qf5 {[%clk 0:02:58]} 12. Ne4 {[%clk 0:03:04]}  Rxg7 {[%clk 0:01:06]} 13. Nh4 {[%clk 0:03:03]} 1-0


[Site "https://www.chess.com"]

[Event "Titled Tuesday Blitz July 11 Late 2023"]
[White "Khouri, Ahmed Abbas"]
[Black "Yurasova, Daria"]
[WhiteFideId "9301518"]
[BlackFideId "34146919"]
[WhiteElo "2132"]
[BlackElo "2471"]
[Result "0-1"]
[Round "2"]
[TimeControl "180+2"]
[Date "2023.07.11"]
[WhiteClock "0:00:02"]
[BlackClock "0:00:08"]
[Board "178"]

1. e4 {[%clk 0:02:59]}  e5 {[%clk 0:02:54]} 2. Nf3 {[%clk 0:02:59]}  Nc6 {[%clk 0:02:53]} 3. Bb5 {[%clk 0:02:59]}  a6 {[%clk 0:02:53]} 4. Ba4 {[%clk 0:02:59]}  Nf6 {[%clk 0:02:53]} 5. d3 {[%clk 0:02:59]}  d6 {[%clk 0:02:52]} 6. c3 {[%clk 0:02:59]}  b5 {[%clk 0:02:50]} 7. Bb3 {[%clk 0:02:59]}  Be7 {[%clk 0:02:49]} 8. Nbd2 {[%clk 0:02:58]}  O-O {[%clk 0:02:45]} 9. Nf1 {[%clk 0:02:59]}  Bb7 {[%clk 0:02:44]} 10. Ng3 {[%clk 0:02:58]}  Re8 {[%clk 0:02:44]} 11. Bg5 {[%clk 0:02:53]}  g6 {[%clk 0:02:40]} 12. O-O {[%clk 0:02:40]}  Bf8 {[%clk 0:02:40]} 13. Qd2 {[%clk 0:02:38]}  Bg7 {[%clk 0:02:40]} 14. Bh6 {[%clk 0:02:39]}  Bh8 {[%clk 0:02:40]} 15. h3 {[%clk 0:02:38]}  Na5 {[%clk 0:02:37]} 16. Bc2 {[%clk 0:02:38]}  c5 {[%clk 0:02:37]} 17. Nf5 {[%clk 0:01:58]}  d5 {[%clk 0:02:23]} 18. exd5 {[%clk 0:01:54]}  Bxd5 {[%clk 0:02:16]} 19. Nh2 {[%clk 0:01:22]}  Be6 {[%clk 0:02:11]} 20. Ne3 {[%clk 0:01:16]}  Qd7 {[%clk 0:02:07]} 21. Bg5 {[%clk 0:01:10]}  Bg7 {[%clk 0:02:03]} 22. Qe2 {[%clk 0:01:03]}  h6 {[%clk 0:01:51]} 23. Bh4 {[%clk 0:01:01]}  Nh5 {[%clk 0:01:44]} 24. Qf3 {[%clk 0:00:48]}  Nf4 {[%clk 0:01:39]} 25. Rfd1 {[%clk 0:00:40]}  Nc6 {[%clk 0:01:21]} 26. Bg3 {[%clk 0:00:38]}  g5 {[%clk 0:01:19]} 27. Bb3 {[%clk 0:00:14]}  Bxb3 {[%clk 0:00:57]} 28. axb3 {[%clk 0:00:14]}  Ne7 {[%clk 0:00:51]} 29. Nhg4 {[%clk 0:00:09]}  Nf5 {[%clk 0:00:47]} 30. Nxf5 {[%clk 0:00:09]}  Qxf5 {[%clk 0:00:48]} 31. Ne3 {[%clk 0:00:07]}  Nxh3+ {[%clk 0:00:46]} 32. Kh2 {[%clk 0:00:07]}  Qxf3 {[%clk 0:00:47]} 33. gxf3 {[%clk 0:00:08]}  Nf4 {[%clk 0:00:47]} 34. Bxf4 {[%clk 0:00:08]}  exf4 {[%clk 0:00:47]} 35. Nd5 {[%clk 0:00:09]}  Re2 {[%clk 0:00:42]} 36. Kg2 {[%clk 0:00:09]}  Rxb2 {[%clk 0:00:37]} 37. Re1 {[%clk 0:00:09]}  Rxb3 {[%clk 0:00:35]} 38. Re7 {[%clk 0:00:07]}  Bxc3 {[%clk 0:00:31]} 39. Rh1 {[%clk 0:00:05]}  Bg7 {[%clk 0:00:30]} 40. Rd1 {[%clk 0:00:04]}  Rd8 {[%clk 0:00:30]} 41. Nc7 {[%clk 0:00:03]}  Rbxd3 {[%clk 0:00:28]} 42. Rde1 {[%clk 0:00:02]}  c4 {[%clk 0:00:23]} 43. Nxa6 {[%clk 0:00:03]}  c3 {[%clk 0:00:22]} 44. Nb4 {[%clk 0:00:04]}  Rd2 {[%clk 0:00:16]} 45. Nc6 {[%clk 0:00:04]}  Rc8 {[%clk 0:00:15]} 46. Ne5 {[%clk 0:00:03]}  c2 {[%clk 0:00:14]} 47. Nxf7 {[%clk 0:00:03]}  c1=Q {[%clk 0:00:14]} 48. R1e6 {[%clk 0:00:03]}  Qc5 {[%clk 0:00:10]} 49. Nxh6+ {[%clk 0:00:01]}  Bxh6 {[%clk 0:00:08]} 50. Re5 {[%clk 0:00:02]}  Qxf2+ {[%clk 0:00:08]} 51. Kh3 {[%clk 0:00:02]}  Qg2# {[%clk 0:00:08]} 0-1


[Site "https://www.chess.com"]

[Event "Titled Tuesday Blitz July 11 Late 2023"]
[White "Rubio Tent, Francisco"]
[Black "campochess"]
[WhiteFideId "2238233"]
[WhiteElo "2463"]
[BlackElo "2116"]
[Result "1-0"]
[Round "2"]
[TimeControl "180+2"]
[Date "2023.07.11"]
[WhiteClock "0:00:08"]
[BlackClock "0:00:58"]
[Board "181"]

1. d4 {[%clk 0:03:00]}  Nf6 {[%clk 0:02:58]} 2. Bf4 {[%clk 0:03:00]}  d6 {[%clk 0:02:57]} 3. Nc3 {[%clk 0:02:59]}  Bf5 {[%clk 0:02:54]} 4. f3 {[%clk 0:02:57]}  h6 {[%clk 0:02:53]} 5. e4 {[%clk 0:02:57]}  Bh7 {[%clk 0:02:52]} 6. Bd3 {[%clk 0:02:55]}  Nfd7 {[%clk 0:02:51]} 7. Nge2 {[%clk 0:02:52]}  Nc6 {[%clk 0:02:48]} 8. O-O {[%clk 0:02:50]}  e5 {[%clk 0:02:47]} 9. Be3 {[%clk 0:02:50]}  Be7 {[%clk 0:02:45]} 10. a3 {[%clk 0:02:19]}  Bg5 {[%clk 0:02:40]} 11. Bf2 {[%clk 0:02:18]}  O-O {[%clk 0:02:37]} 12. Bc4 {[%clk 0:02:00]}  a6 {[%clk 0:02:23]} 13. Ba2 {[%clk 0:01:54]}  Kh8 {[%clk 0:02:20]} 14. Qe1 {[%clk 0:01:50]}  f5 {[%clk 0:02:19]} 15. exf5 {[%clk 0:01:28]}  Bxf5 {[%clk 0:02:18]} 16. Qd1 {[%clk 0:01:23]}  Bf6 {[%clk 0:02:13]} 17. Nd5 {[%clk 0:01:13]}  exd4 {[%clk 0:02:10]} 18. Nxf6 {[%clk 0:01:12]}  Qxf6 {[%clk 0:02:09]} 19. Nxd4 {[%clk 0:01:08]}  Nxd4 {[%clk 0:02:06]} 20. Bxd4 {[%clk 0:01:09]}  Qg6 {[%clk 0:02:06]} 21. Rf2 {[%clk 0:01:01]}  Be6 {[%clk 0:02:01]} 22. Bxe6 {[%clk 0:00:59]}  Qxe6 {[%clk 0:02:00]} 23. Qe1 {[%clk 0:00:59]}  Qf7 {[%clk 0:01:59]} 24. Qc3 {[%clk 0:00:54]}  c5 {[%clk 0:01:56]} 25. Be3 {[%clk 0:00:54]}  d5 {[%clk 0:01:51]} 26. Qb3 {[%clk 0:00:47]}  d4 {[%clk 0:01:47]} 27. Qxf7 {[%clk 0:00:46]}  Rxf7 {[%clk 0:01:46]} 28. Bd2 {[%clk 0:00:46]}  Re8 {[%clk 0:01:45]} 29. Kf1 {[%clk 0:00:46]}  Rfe7 {[%clk 0:01:44]} 30. Re1 {[%clk 0:00:45]}  Rxe1+ {[%clk 0:01:43]} 31. Bxe1 {[%clk 0:00:46]}  Ne5 {[%clk 0:01:42]} 32. Re2 {[%clk 0:00:43]}  Re7 {[%clk 0:01:40]} 33. Bg3 {[%clk 0:00:41]}  Ng6 {[%clk 0:01:39]} 34. Rxe7 {[%clk 0:00:42]}  Nxe7 {[%clk 0:01:39]} 35. Bd6 {[%clk 0:00:43]}  Nc6 {[%clk 0:01:35]} 36. Bxc5 {[%clk 0:00:42]}  Kg8 {[%clk 0:01:35]} 37. Ke2 {[%clk 0:00:40]}  Kf7 {[%clk 0:01:35]} 38. Kd3 {[%clk 0:00:40]}  Ke6 {[%clk 0:01:32]} 39. Bxd4 {[%clk 0:00:40]}  g6 {[%clk 0:01:33]} 40. Bg7 {[%clk 0:00:38]}  h5 {[%clk 0:01:32]} 41. g4 {[%clk 0:00:37]}  hxg4 {[%clk 0:01:32]} 42. fxg4 {[%clk 0:00:38]}  Kd5 {[%clk 0:01:30]} 43. h4 {[%clk 0:00:35]}  Ke6 {[%clk 0:01:29]} 44. h5 {[%clk 0:00:35]}  Kf7 {[%clk 0:01:26]} 45. h6 {[%clk 0:00:34]}  g5 {[%clk 0:01:25]} 46. Ke4 {[%clk 0:00:33]}  Ne7 {[%clk 0:01:24]} 47. Ke5 {[%clk 0:00:30]}  Kg6 {[%clk 0:01:22]} 48. Kd6 {[%clk 0:00:25]}  Nc6 {[%clk 0:01:21]} 49. Kc7 {[%clk 0:00:24]}  Na5 {[%clk 0:01:21]} 50. Kb6 {[%clk 0:00:23]}  Nc4+ {[%clk 0:01:20]} 51. Kxb7 {[%clk 0:00:23]}  Ne3 {[%clk 0:01:20]} 52. Kxa6 {[%clk 0:00:23]}  Nxg4 {[%clk 0:01:20]} 53. b4 {[%clk 0:00:24]}  Nf6 {[%clk 0:01:17]} 54. b5 {[%clk 0:00:18]}  g4 {[%clk 0:01:17]} 55. Bf8 {[%clk 0:00:14]}  Ne4 {[%clk 0:01:13]} 56. b6 {[%clk 0:00:05]}  g3 {[%clk 0:01:12]} 57. b7 {[%clk 0:00:06]}  g2 {[%clk 0:01:12]} 58. b8=Q {[%clk 0:00:06]}  g1=Q {[%clk 0:01:12]} 59. Qb7 {[%clk 0:00:07]}  Kf5 {[%clk 0:01:10]} 60. Qb5+ {[%clk 0:00:07]}  Kg4 {[%clk 0:01:06]} 61. Qd7+ {[%clk 0:00:07]}  Kf3 {[%clk 0:01:04]} 62. Qf5+ {[%clk 0:00:07]}  Ke3 {[%clk 0:01:03]} 63. Bc5+ {[%clk 0:00:07]}  Nxc5+ {[%clk 0:00:58]} 64. Qxc5+ {[%clk 0:00:08]} 1-0


[Site "https://www.chess.com"]

[Event "Titled Tuesday Blitz July 11 Late 2023"]
[White "Djordjevic, Dejan N"]
[Black "Nunez V, Gustavo Eduardo"]
[WhiteFideId "913316"]
[BlackFideId "4403690"]
[WhiteElo "2074"]
[BlackElo "2454"]
[Result "1-0"]
[Round "2"]
[TimeControl "180+2"]
[Date "2023.07.11"]
[WhiteClock "0:00:34"]
[BlackClock "0:00:12"]
[Board "184"]

1. e4 {[%clk 0:03:00]}  d5 {[%clk 0:02:51]} 2. exd5 {[%clk 0:03:00]}  Nf6 {[%clk 0:02:51]} 3. d4 {[%clk 0:02:59]}  Nxd5 {[%clk 0:02:45]} 4. Nf3 {[%clk 0:03:00]}  g6 {[%clk 0:02:45]} 5. c4 {[%clk 0:02:59]}  Nf6 {[%clk 0:02:32]} 6. h3 {[%clk 0:02:59]}  Bg7 {[%clk 0:02:32]} 7. Nc3 {[%clk 0:02:58]}  O-O {[%clk 0:02:32]} 8. Be2 {[%clk 0:02:59]}  c5 {[%clk 0:02:24]} 9. d5 {[%clk 0:02:51]}  Ne8 {[%clk 0:02:22]} 10. O-O {[%clk 0:02:49]}  Nd6 {[%clk 0:02:21]} 11. Be3 {[%clk 0:02:47]}  b6 {[%clk 0:02:20]} 12. Rc1 {[%clk 0:02:30]}  Nd7 {[%clk 0:02:19]} 13. a3 {[%clk 0:02:28]}  a5 {[%clk 0:02:04]} 14. Bf4 {[%clk 0:02:26]}  Nf6 {[%clk 0:01:57]} 15. Bd3 {[%clk 0:02:21]}  h6 {[%clk 0:01:48]} 16. Re1 {[%clk 0:02:16]}  Ra7 {[%clk 0:01:46]} 17. Qd2 {[%clk 0:02:12]}  Kh7 {[%clk 0:01:45]} 18. Ne5 {[%clk 0:02:06]}  Bd7 {[%clk 0:01:39]} 19. a4 {[%clk 0:01:49]}  Qe8 {[%clk 0:01:32]} 20. b3 {[%clk 0:01:48]}  Qc8 {[%clk 0:01:30]} 21. Re2 {[%clk 0:01:37]}  Nf5 {[%clk 0:01:23]} 22. Nxd7 {[%clk 0:01:32]}  Qxd7 {[%clk 0:01:24]} 23. Nb5 {[%clk 0:01:31]}  Rb7 {[%clk 0:01:22]} 24. Rce1 {[%clk 0:01:27]}  Re8 {[%clk 0:01:11]} 25. Bxf5 {[%clk 0:01:17]}  Qxf5 {[%clk 0:01:10]} 26. g4 {[%clk 0:01:06]}  Qd7 {[%clk 0:00:58]} 27. Qd3 {[%clk 0:01:00]}  h5 {[%clk 0:00:57]} 28. g5 {[%clk 0:00:58]}  Ng8 {[%clk 0:00:57]} 29. Nd6 {[%clk 0:00:56]}  exd6 {[%clk 0:00:38]} 30. Rxe8 {[%clk 0:00:55]}  f6 {[%clk 0:00:39]} 31. Rxg8 {[%clk 0:00:50]}  Kxg8 {[%clk 0:00:37]} 32. Qxg6 {[%clk 0:00:50]}  Rb8 {[%clk 0:00:17]} 33. gxf6 {[%clk 0:00:49]}  Qf7 {[%clk 0:00:18]} 34. Qxg7+ {[%clk 0:00:47]}  Qxg7+ {[%clk 0:00:19]} 35. fxg7 {[%clk 0:00:47]}  Kxg7 {[%clk 0:00:20]} 36. Bxd6 {[%clk 0:00:48]}  Rg8 {[%clk 0:00:19]} 37. Kf1 {[%clk 0:00:45]}  Kf6 {[%clk 0:00:20]} 38. Re6+ {[%clk 0:00:44]}  Kf5 {[%clk 0:00:20]} 39. Bc7 {[%clk 0:00:42]}  b5 {[%clk 0:00:20]} 40. cxb5 {[%clk 0:00:41]}  Rc8 {[%clk 0:00:13]} 41. b6 {[%clk 0:00:41]}  Rg8 {[%clk 0:00:12]} 42. Re5+ {[%clk 0:00:40]}  Kf6 {[%clk 0:00:11]} 43. b7 {[%clk 0:00:39]}  c4 {[%clk 0:00:07]} 44. bxc4 {[%clk 0:00:38]}  h4 {[%clk 0:00:07]} 45. Re6+ {[%clk 0:00:38]}  Kf5 {[%clk 0:00:07]} 46. b8=Q {[%clk 0:00:37]}  Rxb8 {[%clk 0:00:07]} 47. Bxb8 {[%clk 0:00:37]}  Kg5 {[%clk 0:00:08]} 48. c5 {[%clk 0:00:35]}  Kf5 {[%clk 0:00:09]} 49. c6 {[%clk 0:00:35]}  Kg5 {[%clk 0:00:10]} 50. c7 {[%clk 0:00:35]}  Kf5 {[%clk 0:00:11]} 51. c8=Q {[%clk 0:00:35]}  Kg5 {[%clk 0:00:11]} 52. Qg8+ {[%clk 0:00:35]}  Kf5 {[%clk 0:00:12]} 53. Qg4# {[%clk 0:00:34]} 1-0


[Site "https://www.chess.com"]

[Event "Titled Tuesday Blitz July 11 Late 2023"]
[White "Semenova, Alina"]
[Black "Le Goff, Ronan"]
[WhiteFideId "24113875"]
[BlackFideId "612073"]
[WhiteElo "2058"]
[BlackElo "2451"]
[Result "0-1"]
[Round "2"]
[TimeControl "180+2"]
[Date "2023.07.11"]
[WhiteClock "0:00:00"]
[BlackClock "0:00:47"]
[Board "185"]

1. e4 {[%clk 0:03:00]}  e5 {[%clk 0:02:57]} 2. Nf3 {[%clk 0:03:00]}  Nc6 {[%clk 0:02:57]} 3. Bb5 {[%clk 0:03:01]}  a6 {[%clk 0:02:45]} 4. Ba4 {[%clk 0:03:00]}  Nf6 {[%clk 0:02:44]} 5. O-O {[%clk 0:03:00]}  Be7 {[%clk 0:02:42]} 6. Re1 {[%clk 0:02:58]}  b5 {[%clk 0:02:42]} 7. Bb3 {[%clk 0:02:58]}  O-O {[%clk 0:02:42]} 8. c3 {[%clk 0:02:57]}  d6 {[%clk 0:02:42]} 9. d4 {[%clk 0:02:57]}  Bg4 {[%clk 0:02:36]} 10. d5 {[%clk 0:02:45]}  Na5 {[%clk 0:02:11]} 11. Bc2 {[%clk 0:02:45]}  c6 {[%clk 0:02:08]} 12. h3 {[%clk 0:02:43]}  Bd7 {[%clk 0:02:05]} 13. b3 {[%clk 0:02:14]}  Rc8 {[%clk 0:02:02]} 14. Ba3 {[%clk 0:02:09]}  cxd5 {[%clk 0:02:00]} 15. exd5 {[%clk 0:02:09]}  Nb7 {[%clk 0:02:00]} 16. Qd3 {[%clk 0:02:00]}  Nc5 {[%clk 0:01:57]} 17. Bxc5 {[%clk 0:02:00]}  Rxc5 {[%clk 0:01:58]} 18. c4 {[%clk 0:01:11]}  bxc4 {[%clk 0:01:56]} 19. bxc4 {[%clk 0:01:12]}  Qc8 {[%clk 0:01:56]} 20. Nbd2 {[%clk 0:01:10]}  Re8 {[%clk 0:01:27]} 21. Rab1 {[%clk 0:00:20]}  g6 {[%clk 0:01:25]} 22. Bb3 {[%clk 0:00:19]}  e4 {[%clk 0:01:13]} 23. Nxe4 {[%clk 0:00:17]}  Nxe4 {[%clk 0:01:14]} 24. Qxe4 {[%clk 0:00:18]}  Bf5 {[%clk 0:01:14]} 25. Qf4 {[%clk 0:00:14]}  Bxb1 {[%clk 0:01:13]} 26. Rxb1 {[%clk 0:00:15]}  Bf8 {[%clk 0:01:10]} 27. Ng5 {[%clk 0:00:12]}  Qc7 {[%clk 0:01:08]} 28. Nf3 {[%clk 0:00:08]}  Bg7 {[%clk 0:01:05]} 29. Qh4 {[%clk 0:00:06]}  Qe7 {[%clk 0:01:02]} 30. Qg4 {[%clk 0:00:06]}  Rcc8 {[%clk 0:01:01]} 31. Ba4 {[%clk 0:00:06]}  Rf8 {[%clk 0:00:58]} 32. Re1 {[%clk 0:00:06]}  Qc7 {[%clk 0:00:57]} 33. Bc6 {[%clk 0:00:06]}  Qb6 {[%clk 0:00:57]} 34. Ng5 {[%clk 0:00:04]}  Rxc6 {[%clk 0:00:55]} 35. dxc6 {[%clk 0:00:04]}  Qxc6 {[%clk 0:00:56]} 36. Qh4 {[%clk 0:00:04]}  h6 {[%clk 0:00:56]} 37. Nf3 {[%clk 0:00:03]}  Rc8 {[%clk 0:00:54]} 38. Rc1 {[%clk 0:00:03]}  d5 {[%clk 0:00:54]} 39. Nd2 {[%clk 0:00:01]}  Qf6 {[%clk 0:00:47]} 40. Nb3 {[%clk 0:00:00]}  Qxh4 {[%clk 0:00:47]} 0-1


[Site "https://www.chess.com"]